fUST/lending_fUST_20250419
["ID","MTS","AMOUNT","RATE_DAILY","PERIOD"]
[358397429,1745064649278,-500.0,0.00022191,2]
[358397430,1745064649288,-45115.3987709,0.0002224,2]
[358397431,1745064649298,-267.92361,0.00022328,2]
[358397432,1745064649308,-151.0,0.00022328,2]
[358397433,1745064649318,-500.0,0.00022328,2]
[358397434,1745064649328,-500.0,0.00022328,2]
[358397435,1745064649339,-199.19160204,0.00022328,2]
[358397436,1745064649349,-198.0,0.00022328,2]
[358397437,1745064649359,-246.45003749,0.00022328,2]
[358397438,1745064649369,-156.0,0.000224,8]
[358397439,1745064649379,-114.07115256,0.000224,8]
[358397440,1745064649827,-36.92884744,0.000224,8]
[358397441,1745064649837,-10715.53848272,0.0002241,2]
[358397442,1745064649846,-193.66771296,0.00022465,2]
[358397443,1745064649856,-500.0,0.00022465,2]
[358397444,1745064649866,-500.0,0.00022465,2]
[358397445,1745064649876,-500.0,0.00022465,2]
[358397446,1745064649886,-500.0,0.00022465,2]
[358397447,1745064649898,-500.0,0.00022465,2]
[358397448,1745064649908,-500.0,0.00022465,2]
[358397449,1745064649918,-500.0,0.00022465,2]
[358397450,1745064649927,-500.0,0.00022465,2]
[358397451,1745064649938,-500.0,0.00022465,2]
[358397452,1745064649948,-500.0,0.00022465,2]
[358397453,1745064649957,-646.85,0.00022465,2]
[358397454,1745064649967,-500.0,0.00022465,2]
[358397455,1745064649978,-1191.1,0.00022465,2]
[358397456,1745064649988,-624.54,0.00022465,2]
[358397457,1745064649998,-519.14,0.00022465,2]
[358397458,1745064650008,-500.0,0.00022465,2]
[358397459,1745064650017,-500.0,0.00022465,2]
[358397460,1745064650027,-500.0,0.00022465,2]
[358397461,1745064650036,-500.0,0.00022465,2]
[358397462,1745064650045,-500.0,0.00022465,2]
[358397463,1745064650055,-500.0,0.00022465,2]
[358397464,1745064650065,-360.37,0.00022465,2]
[358397465,1745064650074,-500.0,0.00022465,2]
[358397466,1745064650084,-1093.57,0.00022465,2]
[358397467,1745064650094,-581.66,0.00022465,2]
[358397468,1745064650103,-500.0,0.00022465,2]
[358397469,1745064650113,-660.83,0.00022465,2]
[358397470,1745064650122,-500.0,0.00022465,2]
[358397471,1745064650132,-500.0,0.00022465,2]
[358397472,1745064650141,-500.0,0.00022465,2]
[358397473,1745064650151,-500.0,0.00022465,2]
[358397474,1745064650160,-500.0,0.00022465,2]
[358397475,1745064650169,-500.0,0.00022465,2]
[358397476,1745064650179,-500.0,0.00022465,2]
[358397477,1745064650188,-100.22408223,0.00022465,2]
[358397478,1745064650209,-399.77591777,0.00022465,2]
[358397479,1745064650218,-558.82,0.00022465,2]
[358397480,1745064650228,-796.47,0.00022465,2]
[358397481,1745064650238,-500.0,0.00022465,2]
[358397482,1745064650247,-500.0,0.00022465,2]
[358397483,1745064650257,-500.0,0.00022465,2]
[358397484,1745064650267,-500.0,0.00022465,2]
[358397485,1745064650276,-500.0,0.00022465,2]
[358397486,1745064650286,-500.0,0.00022465,2]
[358397487,1745064650296,-500.0,0.00022465,2]
[358397488,1745064650305,-500.0,0.00022465,2]
[358397489,1745064650315,-1875.56,0.00022465,2]
[358397490,1745064650325,-508.04,0.00022465,2]
[358397491,1745064650334,-500.0,0.00022465,2]
[358397492,1745064650344,-500.0,0.00022465,2]
[358397493,1745064650353,-691.48,0.00022465,2]
[358397494,1745064650363,-500.0,0.00022465,2]
[358397495,1745064650372,-500.0,0.00022465,2]
[358397496,1745064650382,-500.0,0.00022465,2]
[358397497,1745064650391,-500.0,0.00022465,2]
[358397498,1745064650401,-500.0,0.00022465,2]
[358397499,1745064650411,-500.0,0.00022465,2]
[358397500,1745064650420,-501.7,0.00022465,2]
[358397501,1745064650430,-502.53777735,0.00022465,2]
[358397502,1745064650439,-500.0,0.00022465,2]
[358397503,1745064650449,-500.0,0.00022465,2]
[358397504,1745064650459,-500.0,0.00022465,2]
[358397505,1745064650469,-500.0,0.00022465,2]
[358397506,1745064650479,-525.03,0.00022465,2]
[358397507,1745064650488,-542.88,0.00022465,2]
[358397508,1745064650498,-975.49,0.00022465,2]
[358397509,1745064650507,-500.0,0.00022465,2]
[358397510,1745064650517,-500.0,0.00022465,2]
[358397511,1745064650526,-500.0,0.00022465,2]
[358397512,1745064650536,-514.29525829,0.00022465,2]
[358397513,1745064650546,-516.64,0.00022465,2]
[358397514,1745064650556,-866.28,0.00022465,2]
[358397515,1745064650566,-500.0,0.00022465,2]
[358397516,1745064650575,-500.0,0.00022465,2]
[358397517,1745064650585,-500.0,0.00022465,2]
[358397518,1745064650595,-2807.85,0.00022465,2]
[358397519,1745064650606,-500.0,0.00022465,2]
[358397520,1745064650616,-500.0,0.00022465,2]
[358397521,1745064650627,-570.01,0.00022465,2]
[358397522,1745064650637,-500.0,0.00022465,2]
[358397523,1745064650647,-530.77,0.00022465,2]
[358397524,1745064650657,-950.78,0.00022465,2]
[358397525,1745064650667,-500.0,0.00022465,2]
[358397526,1745064650677,-908.21,0.00022465,2]
[358397527,1745064650687,-500.0,0.00022465,2]
[358397528,1745064650696,-500.0,0.00022465,2]
[358397529,1745064650705,-500.0,0.00022465,2]
[358397530,1745064650715,-1034.44,0.00022465,2]
[358397531,1745064650724,-500.0,0.00022465,2]
[358397532,1745064650734,-784.0,0.00022465,2]
[358397533,1745064650744,-500.0,0.00022465,2]
[358397534,1745064650754,-978.48,0.00022465,2]
[358397535,1745064650763,-1461.92,0.00022465,2]
[358397536,1745064650772,-529.58,0.00022465,2]
[358397537,1745064650782,-685.04,0.00022465,2]
[358397538,1745064650792,-500.0,0.00022465,2]
[358397539,1745064650802,-500.0,0.00022465,2]
[358397540,1745064650811,-500.0,0.00022465,2]
[358397541,1745064650821,-500.0,0.00022465,2]
[358397542,1745064650831,-500.0,0.00022465,2]
[358397543,1745064650841,-500.0,0.00022465,2]
[358397544,1745064650850,-500.0,0.00022465,2]
[358397545,1745064650860,-500.0,0.00022465,2]
[358397546,1745064650870,-615.05,0.00022465,2]
[358397547,1745064650880,-642.7,0.00022465,2]
[358397548,1745064650890,-500.0,0.00022465,2]
[358397549,1745064650903,-500.0,0.00022465,2]
[358397550,1745064650913,-507.67,0.00022465,2]
[358397551,1745064650923,-599.76,0.00022465,2]
[358397552,1745064650932,-715.0,0.00022465,2]
[358397553,1745064650943,-500.0,0.00022465,2]
[358397554,1745064650953,-500.0,0.00022465,2]
[358397555,1745064650963,-932.44,0.00022465,2]
[358397556,1745064650973,-500.0,0.00022465,2]
[358397557,1745064650983,-500.0,0.00022465,2]
[358397558,1745064650993,-500.0,0.00022465,2]
[358397559,1745064651003,-500.0,0.00022465,2]
[358397560,1745064651012,-500.0,0.00022465,2]
[358397561,1745064651022,-500.0,0.00022465,2]
[358397562,1745064651032,-500.0,0.00022465,2]
[358397563,1745064651041,-500.0,0.00022465,2]
[358397564,1745064651051,-500.0,0.00022465,2]
[358397565,1745064651061,-670.26,0.00022465,2]
[358397566,1745064651070,-500.0,0.00022465,2]
[358397567,1745064651080,-500.0,0.00022465,2]
[358397568,1745064651090,-500.0,0.00022465,2]
[358397569,1745064651100,-500.0,0.00022465,2]
[358397570,1745064651110,-973.01,0.00022465,2]
[358397571,1745064651120,-500.0,0.00022465,2]
[358397572,1745064651130,-500.0,0.00022465,2]
[358397573,1745064651140,-500.0,0.00022465,2]
[358397574,1745064651150,-1003.44,0.00022465,2]
[358397575,1745064651159,-881.94,0.00022465,2]
[358397576,1745064651169,-500.0,0.00022465,2]
[358397577,1745064651179,-500.0,0.00022465,2]
[358397578,1745064651190,-835.39,0.00022465,2]
[358397579,1745064651204,-500.0,0.00022465,2]
[358397580,1745064651214,-1236.83,0.00022465,2]
[358397581,1745064651224,-500.0,0.00022465,2]
[358397582,1745064651235,-932.51,0.00022465,2]
[358397583,1745064651244,-698.74,0.00022465,2]
[358397584,1745064651254,-11305.22,0.00022465,2]
[358397585,1745064651264,-500.61,0.00022465,2]
[358397586,1745064651275,-1121.92,0.00022465,2]
[358397587,1745064651285,-500.0,0.00022465,2]
[358397588,1745064651295,-571.68,0.00022465,2]
[358397589,1745064651305,-1289.49,0.00022465,2]
[358397590,1745064651315,-500.0,0.00022465,2]
[358397591,1745064651324,-479.12431154,0.00022465,2]
[358397592,1745064651335,-867.13,0.00022465,2]
[358397593,1745064651345,-500.0,0.00022465,2]
[358397594,1745064651355,-868.49,0.00022465,2]
[358397595,1745064651367,-500.0,0.00022465,2]
[358397596,1745064651376,-3576.72,0.00022465,2]
[358397597,1745064651387,-500.0,0.00022465,2]
[358397598,1745064651397,-500.0,0.00022465,2]
[358397599,1745064651407,-221.20052121,0.00022465,2]
[358397600,1745064651422,-278.79947879,0.00022465,2]
[358397601,1745064651432,-500.0,0.00022465,2]
[358397602,1745064651443,-500.0,0.00022465,2]
[358397603,1745064651453,-570.69,0.00022465,2]
[358397604,1745064651462,-500.0,0.00022465,2]
[358397605,1745064651471,-283.06521667,0.00022465,2]
[358397606,1745064651488,-500.0,0.00022191,2]
[358397607,1745064651498,-1336.14478333,0.00022465,2]
[358397608,1745064651507,-500.0,0.00022465,2]
[358397609,1745064651516,-500.0,0.00022465,2]
[358397610,1745064651526,-500.0,0.00022465,2]
[358397611,1745064651535,-670.46,0.00022465,2]
[358397612,1745064651545,-3152.32,0.00022465,2]
[358397613,1745064651555,-500.0,0.00022465,2]
[358397614,1745064651564,-899.89,0.00022465,2]
[358397615,1745064651575,-507.39455312,0.00022465,2]
[358397616,1745064651585,-518.39,0.00022465,2]
[358397617,1745064651595,-500.0,0.00022465,2]
[358397618,1745064651607,-500.0,0.00022465,2]
[358397619,1745064651616,-500.0,0.00022465,2]
[358397620,1745064651626,-500.0,0.00022465,2]
[358397621,1745064651638,-500.0,0.00022465,2]
[358397622,1745064651650,-500.0,0.00022465,2]
[358397623,1745064651660,-163.5533345,0.00022465,2]
[358397624,1745064651671,-1079.22,0.00022465,2]
[358397625,1745064651682,-1116.86,0.00022465,2]
[358397626,1745064651692,-500.0,0.00022465,2]
[358397627,1745064651704,-500.0,0.00022465,2]
[358397628,1745064651713,-726.08,0.00022465,2]
[358397629,1745064651723,-500.0,0.00022465,2]
[358397630,1745064651732,-500.0,0.00022465,2]
[358397631,1745064651742,-2492.81,0.00022465,2]
[358397632,1745064651752,-512.94,0.00022465,2]
[358397633,1745064651763,-500.0,0.00022465,2]
[358397634,1745064651773,-500.0,0.00022465,2]
[358397635,1745064651784,-3254.8,0.00022465,2]
[358397636,1745064651794,-876.64,0.00022465,2]
[358397637,1745064651804,-883.33,0.00022465,2]
[358397638,1745064651814,-4505.99,0.00022465,2]
[358397639,1745064651824,-1755.43,0.00022465,2]
[358397640,1745064651834,-5430.97,0.00022465,2]
[358397641,1745064651844,-634.04,0.00022465,2]
[358397642,1745064651854,-457.49535532,0.00022465,2]
[358397643,1745064652061,-42.50464468,0.00022465,2]
[358397644,1745064652072,-500.0,0.00022465,2]
[358397645,1745064652082,-315.73342933,0.00022465,2]
[358397646,1745064652286,-184.26657067,0.00022465,2]
[358397647,1745064652297,-500.0,0.00022465,2]
[358397648,1745064652308,-602.65,0.00022465,2]
[358397649,1745064652319,-908.19,0.00022465,2]
[358397650,1745064652329,-500.0,0.00022465,2]
[358397651,1745064652339,-751.58,0.00022465,2]
[358397652,1745064652348,-797.67,0.00022465,2]
[358397653,1745064652358,-500.0,0.00022465,2]
[358397654,1745064652368,-1407.88,0.00022465,2]
[358397655,1745064652379,-11044.9647026,0.00022465,2]
[358397656,1745064652854,-2413.5050713,0.00022465,2]
[358397657,1745064652915,-943.7425925,0.00022465,2]
[358397699,1745065831810,-471.6552766,0.00020815,2]
[358397700,1745065831820,-152.68707533,0.00021715,2]
[358397701,1745065831830,-160.0,0.00021746,2]
[358397702,1745065831840,-300.0,0.00021814,2]
[358397703,1745065831849,-50000.0,0.00021815,2]
[358397704,1745065831859,-500.0,0.00021815,2]
[358397705,1745065831869,-500.0,0.00021815,2]
[358397706,1745065831878,-229.39993829,0.00021815,2]
[358397707,1745065831887,-500.0,0.00021815,2]
[358397708,1745065831898,-500.0,0.00021815,2]
[358397709,1745065831908,-279.36251538,0.00021815,2]
[358397710,1745065831918,-500.0,0.00021815,2]
[358397711,1745065831927,-500.0,0.00021815,2]
[358397712,1745065831937,-344.49900159,0.00021815,2]
[358397713,1745065831946,-298.63530441,0.00021816,2]
[358397714,1745065831955,-526.87819824,0.00021816,2]
[358397715,1745065831965,-500.0,0.00021816,2]
[358397716,1745065831975,-16558.24621986,0.00021817,2]
[358397717,1745065831987,-606.84252089,0.00021817,2]
[358397718,1745065832007,-263.07917187,0.00021817,2]
[358397719,1745065832019,-14154.9205321,0.00021817,2]
[358397728,1745065837915,-1055.18969414,0.00021817,2]
[358397754,1745065845826,-253.26250171,0.00021814,2]
[358397755,1745065845837,-35997.96764186,0.00021817,2]
[358397756,1745065845849,-160.0,0.00021832,2]
[358397757,1745065845860,-402.0,0.00021885,2]
[358397758,1745065845870,-151.0,0.00021904,2]
[358397759,1745065845880,-207.4,0.00021904,2]
[358397760,1745065845890,-839.40992179,0.0002191,2]
[358397761,1745065845900,-500.0,0.00021917,2]
[358397762,1745065845909,-500.0,0.00021917,2]
[358397763,1745065845919,-500.0,0.00021917,2]
[358397764,1745065845929,-500.0,0.00021917,2]
[358397765,1745065845940,-500.0,0.00021917,2]
[358397766,1745065845951,-250.00672617,0.00021917,2]
[358397767,1745065845961,-500.0,0.00021917,2]
[358397768,1745065845971,-348.8145162,0.00021917,2]
[358397769,1745065845981,-446.24409386,0.00021917,2]
[358397770,1745065845993,-500.0,0.00021917,2]
[358397771,1745065846007,-500.0,0.00021917,2]
[358397772,1745065846018,-500.0,0.00021917,2]
[358397773,1745065846027,-500.0,0.00021917,2]
[358397774,1745065846039,-500.0,0.00021917,2]
[358397775,1745065846049,-500.0,0.00021917,2]
[358397776,1745065846059,-500.0,0.00021917,2]
[358397777,1745065846069,-507.92647594,0.00021917,2]
[358397778,1745065846079,-500.0,0.00021917,2]
[358397779,1745065846093,-500.0,0.00021917,2]
[358397780,1745065846103,-914.07,0.00021917,2]
[358397781,1745065846113,-500.0,0.00021917,2]
[358397782,1745065846123,-500.0,0.00021917,2]
[358397783,1745065846133,-500.0,0.00021917,2]
[358397784,1745065846144,-758.0,0.00021917,2]
[358397785,1745065846154,-500.0,0.00021917,2]
[358397786,1745065846164,-500.0,0.00021917,2]
[358397787,1745065846175,-500.0,0.00021917,2]
[358397788,1745065846184,-500.0,0.00021917,2]
[358397789,1745065846194,-500.0,0.00021917,2]
[358397790,1745065846204,-500.0,0.00021917,2]
[358397791,1745065846214,-500.0,0.00021917,2]
[358397792,1745065846224,-500.0,0.00021917,2]
[358397793,1745065846235,-831.93,0.00021917,2]
[358397794,1745065846244,-500.0,0.00021917,2]
[358397795,1745065846255,-500.0,0.00021917,2]
[358397796,1745065846264,-500.0,0.00021917,2]
[358397797,1745065846274,-500.0,0.00021917,2]
[358397798,1745065846284,-500.0,0.00021917,2]
[358397799,1745065846294,-500.0,0.00021917,2]
[358397800,1745065846304,-500.0,0.00021917,2]
[358397801,1745065846314,-1299.22,0.00021917,2]
[358397802,1745065846324,-500.0,0.00021917,2]
[358397803,1745065846334,-605.05,0.00021917,2]
[358397804,1745065846344,-500.0,0.00021917,2]
[358397805,1745065846353,-500.0,0.00021917,2]
[358397806,1745065846363,-500.0,0.00021917,2]
[358397807,1745065846374,-500.0,0.00021917,2]
[358397808,1745065846384,-500.0,0.00021917,2]
[358397809,1745065846394,-500.0,0.00021917,2]
[358397810,1745065846405,-704.52,0.00021917,2]
[358397811,1745065846414,-500.0,0.00021917,2]
[358397812,1745065846424,-350.66812157,0.00021917,2]
[358397813,1745065846434,-184.56559133,0.00021917,2]
[358397814,1745065846443,-500.0,0.00021917,2]
[358397815,1745065846453,-500.0,0.00021917,2]
[358397816,1745065846462,-500.0,0.00021917,2]
[358397817,1745065846472,-500.0,0.00021917,2]
[358397818,1745065846482,-500.0,0.00021917,2]
[358397819,1745065846492,-500.0,0.00021917,2]
[358397820,1745065846500,-500.0,0.00021917,2]
[358397821,1745065846509,-500.0,0.00021917,2]
[358397822,1745065846521,-500.0,0.00021917,2]
[358397823,1745065846533,-500.0,0.00021917,2]
[358397824,1745065846544,-500.0,0.00021917,2]
[358397825,1745065846555,-851.38,0.00021917,2]
[358397826,1745065846566,-500.0,0.00021917,2]
[358397827,1745065846578,-500.0,0.00021917,2]
[358397828,1745065846588,-2474.47,0.00021917,2]
[358397829,1745065846598,-500.0,0.00021917,2]
[358397830,1745065846608,-500.0,0.00021917,2]
[358397831,1745065846618,-372.4514365,0.00021917,2]
[358397832,1745065846628,-853.55,0.00021917,2]
[358397833,1745065846638,-337.85290835,0.00021917,2]
[358397834,1745065846649,-500.0,0.00021917,2]
[358397835,1745065846659,-500.0,0.00021917,2]
[358397836,1745065846669,-500.0,0.00021917,2]
[358397837,1745065846679,-500.0,0.00021917,2]
[358397838,1745065846689,-500.0,0.00021917,2]
[358397839,1745065846699,-500.0,0.00021917,2]
[358397840,1745065846709,-82.13376052,0.00021917,2]
[358397841,1745065846752,-417.86623948,0.00021917,2]
[358397842,1745065846762,-500.0,0.00021917,2]
[358397843,1745065846772,-500.0,0.00021917,2]
[358397844,1745065846783,-500.0,0.00021917,2]
[358397845,1745065846793,-500.0,0.00021917,2]
[358397846,1745065846803,-686.0,0.00021917,2]
[358397847,1745065846813,-500.0,0.00021917,2]
[358397848,1745065846824,-500.0,0.00021917,2]
[358397849,1745065846835,-500.0,0.00021917,2]
[358397850,1745065846844,-396.13376052,0.00021917,2]
[358398652,1745067031893,-188.21933917,0.00019817,2]
[358398653,1745067031904,-225.89115833,0.00020895,2]
[358398654,1745067031949,-420.95416217,0.00020895,2]
[358398655,1745067031959,-160.0,0.00021854,2]
[358398656,1745067031970,-402.0,0.00021885,2]
[358398657,1745067031981,-2063.53755817,0.000219,3]
[358398658,1745067031993,-300.0,0.00021902,2]
[358398659,1745067032003,-156.81,0.00021903,2]
[358398660,1745067032013,-7031.09413143,0.00021903,2]
[358398702,1745067038203,-500.0,0.00021902,2]
[358398704,1745067038212,-495.38806346,0.00021902,2]
[358398706,1745067038225,-282.82013236,0.00021902,2]
[358398960,1745067046094,-217.17986764,0.00021902,2]
[358398962,1745067046104,-210.64428236,0.00021902,2]
[358398964,1745067046115,-492.61437988,0.00021902,2]
[358401065,1745068232083,-300.0,0.00018997,2]
[358401066,1745068232093,-300.0,0.00018997,2]
[358401067,1745068232105,-500.0,0.00018998,2]
[358401068,1745068232115,-268.05579735,0.00018998,2]
[358401069,1745068232125,-500.0,0.00018998,2]
[358401070,1745068232136,-500.0,0.00018998,2]
[358401071,1745068232146,-500.0,0.00018998,2]
[358401072,1745068232156,-500.0,0.00018998,2]
[358401073,1745068232167,-434.22179766,0.00018998,2]
[358401074,1745068232176,-500.0,0.00018998,2]
[358401075,1745068232186,-500.0,0.00018998,2]
[358401076,1745068232196,-500.0,0.00018998,2]
[358401078,1745068232205,-500.0,0.00018998,2]
[358401080,1745068232214,-500.0,0.00018998,2]
[358401081,1745068232224,-500.0,0.00018998,2]
[358401082,1745068232233,-500.0,0.00018998,2]
[358401083,1745068232243,-500.0,0.00018998,2]
[358401085,1745068232252,-500.0,0.00018998,2]
[358401087,1745068232262,-500.0,0.00018998,2]
[358401089,1745068232271,-500.0,0.00018998,2]
[358401091,1745068232281,-504.55638094,0.00018998,2]
[358401093,1745068232291,-12266.66474352,0.00018999,2]
[358401095,1745068232301,-468.02790054,0.00018999,2]
[358401097,1745068232310,-26644.37335752,0.00019,2]
[358401099,1745068232319,-559.04471309,0.00019178,2]
[358401101,1745068232329,-2036.48086753,0.000195,2]
[358401103,1745068232339,-359.3838135,0.00019717,2]
[358401106,1745068232348,-179.97090432,0.00019803,2]
[358401108,1745068232357,-2036.4808675,0.00019934,2]
[358401110,1745068232366,-420.0,0.00020707,2]
[358401112,1745068232376,-420.0,0.00020808,2]
[358401114,1745068232386,-240.419686,0.00020889,2]
[358401116,1745068232395,-2036.4808675,0.00020969,3]
[358401118,1745068232406,-151.0,0.00021,2]
[358401120,1745068232415,-156.81,0.00021,2]
[358401121,1745068232425,-157.0640115,0.00021644,2]
[358401122,1745068232434,-4409.58216095,0.000218,2]
[358401123,1745068232462,-20080.37250967,0.000218,2]
[358401155,1745068238368,-1030.44914633,0.00018998,3]
[358401157,1745068238378,-37510.04532938,0.000218,2]
[358401159,1745068238388,-348.28,0.00021885,2]
[358401160,1745068238398,-401.992,0.00021885,2]
[358401163,1745068238408,-160.0,0.000219,2]
[358401165,1745068238418,-207.4,0.00021904,2]
[358401167,1745068238427,-27884.01250705,0.0002191,2]
[358401169,1745068238438,-500.0,0.00021917,2]
[358401171,1745068238448,-500.0,0.00021917,2]
[358401173,1745068238458,-500.0,0.00021917,2]
[358401175,1745068238470,-500.0,0.00021917,2]
[358401177,1745068238481,-500.0,0.00021917,2]
[358401179,1745068238490,-500.0,0.00021917,2]
[358401181,1745068238500,-500.0,0.00021917,2]
[358401183,1745068238511,-500.0,0.00021917,2]
[358401185,1745068238521,-500.0,0.00021917,2]
[358401187,1745068238531,-500.0,0.00021917,2]
[358401189,1745068238543,-500.0,0.00021917,2]
[358401191,1745068238553,-500.0,0.00021917,2]
[358401193,1745068238563,-500.0,0.00021917,2]
[358401195,1745068238573,-500.0,0.00021917,2]
[358401197,1745068238583,-500.0,0.00021917,2]
[358401199,1745068238593,-500.0,0.00021917,2]
[358401201,1745068238603,-500.0,0.00021917,2]
[358401203,1745068238612,-500.0,0.00021917,2]
[358401205,1745068238623,-500.0,0.00021917,2]
[358401207,1745068238633,-500.0,0.00021917,2]
[358401209,1745068238643,-500.0,0.00021917,2]
[358401211,1745068238653,-500.0,0.00021917,2]
[358401213,1745068238662,-500.0,0.00021917,2]
[358401215,1745068238671,-1110.35,0.00021917,2]
[358401217,1745068238681,-500.0,0.00021917,2]
[358401219,1745068238691,-500.0,0.00021917,2]
[358401221,1745068238701,-580.46,0.00021917,2]
[358401223,1745068238710,-500.0,0.00021917,2]
[358401225,1745068238720,-603.25,0.00021917,2]
[358401227,1745068238730,-500.0,0.00021917,2]
[358401256,1745068238985,-1000.0,0.00021917,2]
[358401258,1745068238996,-500.0,0.00021917,2]
[358401260,1745068239006,-500.0,0.00021917,2]
[358401262,1745068239016,-500.0,0.00021917,2]
[358401264,1745068239026,-500.0,0.00021917,2]
[358401266,1745068239036,-500.0,0.00021917,2]
[358401268,1745068239045,-500.0,0.00021917,2]
[358401270,1745068239055,-500.0,0.00021917,2]
[358401272,1745068239065,-956.88,0.00021917,2]
[358401274,1745068239075,-508.95,0.00021917,2]
[358401276,1745068239085,-500.0,0.00021917,2]
[358401278,1745068239095,-300.71660727,0.00021917,2]
[358401280,1745068239106,-500.0,0.00021917,2]
[358401283,1745068239116,-578.22,0.00021917,2]
[358401284,1745068239125,-500.0,0.00021917,2]
[358401286,1745068239135,-500.0,0.00021917,2]
[358401288,1745068239144,-500.0,0.00021917,2]
[358401290,1745068239153,-500.0,0.00021917,2]
[358401292,1745068239163,-500.0,0.00021917,2]
[358401295,1745068239173,-500.0,0.00021917,2]
[358401297,1745068239183,-500.0,0.00021917,2]
[358401299,1745068239193,-512.52855931,0.00021917,2]
[358401301,1745068239202,-500.0,0.00021917,2]
[358401303,1745068239212,-500.0,0.00021917,2]
[358401304,1745068239221,-500.0,0.00021917,2]
[358401306,1745068239231,-506.93709484,0.00021917,2]
[358401308,1745068239240,-675.16,0.00021917,2]
[358401310,1745068239250,-500.0,0.00021917,2]
[358401312,1745068239260,-500.0,0.00021917,2]
[358401314,1745068239270,-500.0,0.00021917,2]
[358401316,1745068239280,-500.0,0.00021917,2]
[358401318,1745068239290,-500.0,0.00021917,2]
[358401320,1745068239299,-502.4637224,0.00021917,2]
[358401322,1745068239309,-500.0,0.00021917,2]
[358401324,1745068239319,-500.0,0.00021917,2]
[358401326,1745068239330,-742.55,0.00021917,2]
[358401328,1745068239339,-500.0,0.00021917,2]
[358401330,1745068239350,-1586.99,0.00021917,2]
[358401332,1745068239359,-500.0,0.00021917,2]
[358401334,1745068239368,-500.0,0.00021917,2]
[358401336,1745068239380,-875.98,0.00021917,2]
[358401338,1745068239392,-579.84,0.00021917,2]
[358401340,1745068239402,-500.0,0.00021917,2]
[358401342,1745068239412,-500.0,0.00021917,2]
[358401344,1745068239421,-817.98,0.00021917,2]
[358401346,1745068239431,-500.0,0.00021917,2]
[358401348,1745068239440,-500.0,0.00021917,2]
[358401350,1745068239450,-170.60747997,0.00021917,2]
[358401352,1745068239463,-348.28,0.00021917,2]
[358401445,1745068240535,-207.52252003,0.00021917,2]
[358401447,1745068240546,-195.46819955,0.00021917,2]
[358401690,1745068243423,-304.53180045,0.00021917,2]
[358401692,1745068243433,-500.0,0.00021917,2]
[358401694,1745068243443,-500.0,0.00021917,2]
[358401696,1745068243452,-500.0,0.00021917,2]
[358401698,1745068243462,-500.0,0.00021917,2]
[358401699,1745068243476,-500.0,0.00021917,2]
[358401700,1745068243486,-500.0,0.00021917,2]
[358401701,1745068243496,-500.0,0.00021917,2]
[358401702,1745068243506,-500.0,0.00021917,2]
[358401703,1745068243517,-500.0,0.00021917,2]
[358401704,1745068243528,-500.0,0.00021917,2]